[Event "DVM U14 2021"]
[Site "Willingen"]
[Date "2022.08.14"]
[Round "4"]
[White "Keck, Johannes"]
[Black "Goldinov, Daniel"]
[Result "1/2-1/2"]
[ECO "B11"]
[WhiteElo "1310"]
[BlackElo "1546"]
[Annotator "NA RC"]
[PlyCount "53"]
[EventDate "2022.08.12"]
[EventType "team-tourn"]
[EventRounds "7"]
[EventCountry "GER"]
[SourceTitle "playchess.com"]
[Source "ChessBase"]
[SourceQuality "1"]
[TimeControl "40/5400+30:1800+30"]

1. e4 {[%emt 0:00:25]} c6 {[%emt 0:00:02]} 2. Nf3 {[%emt 0:00:44]} d5 {[%emt 0:00:13]} 3. Nc3 {[%emt 0:00:13]} dxe4 {[%emt 0:00:33]} 4. Nxe4 {[%emt 0:00:42]} Nf6 {[%emt 0:00:49]} 5. Qe2 {[%emt 0:01:31]} Nxe4 {[%emt 0:00:33]} 6. Qxe4 {[%emt 0:00:38]} Nd7 {[%emt 0:00:28]} 7. Bc4 {[%emt 0:00:40]} Nf6 {[%emt 0:00:19]} 8. Ne5 {[%emt 0:00:27]} e6 {[%emt 0:00:07]} 9. Qe2 {[%emt 0:00:33]} Bd6 {[%emt 0:01:42]} 10. O-O {[%emt 0:08:22]} O-O {[%emt 0:00:50]} 11. d3 {[%emt 0:04:02]} Qc7 {[%emt 0:04:53]} 12. Re1 {[%emt 0:05:30]} Nd7 {[%emt 0:05:19]} 13. Bf4 {[%emt 0:10:43]} Nb6 {[%emt 0:02:10]} 14. Bg3 {[%emt 0:09:18]} f6 {[%emt 0:03:30]} 15. Nf3 {[%emt 0:02:24]} Nxc4 {[%emt 0:00:21]} 16. dxc4 {[%emt 0:00:20]} Bxg3 {[%emt 0:05:58]} 17. hxg3 {[%emt 0:01:18]} e5 {[%emt 0:01:25]} 18. c5 {[%emt 0:13:09]} Qf7 {[%emt 0:06:29]} 19. c4 {[%emt 0:07:09]} Bg4 {[%emt 0:04:14]} 20. Qc2 {[%emt 0:03:16]} Rad8 {[%emt 0:09:20]} 21. Rad1 {[%emt 0:03:29]} Qe7 {[%emt 0:05:18]} 22. b4 {[%emt 0:02:14]} g6 {[%emt 0:24:10]} 23. Rd2 {[%emt 0:12:24]} Bxf3 {[%emt 0:00:55]} 24. gxf3 {[%emt 0:01:07]} Rxd2 {[%emt 0:00:25]} 25. Qxd2 {[%emt 0:00:21]} Rd8 {[%emt 0:00:42]} 26. Qe3 {[%emt 0:03:42]} Qf7 {[%emt 0:08:02]} 27. f4 {[%emt 0:02:55]} 1/2-1/2

[Event "DVM U14 2021"]
[Site "Willingen"]
[Date "2022.08.14"]
[Round "4"]
[White "Liu, Leon"]
[Black "Yue, Qihang"]
[Result "0-1"]
[ECO "C47"]
[WhiteElo "1256"]
[BlackElo "1401"]
[Annotator "NA RC"]
[PlyCount "68"]
[EventDate "2022.08.12"]
[EventType "team-tourn"]
[EventRounds "7"]
[EventCountry "GER"]
[SourceTitle "playchess.com"]
[Source "ChessBase"]
[SourceQuality "1"]
[TimeControl "40/5400+30:1800+30"]

1. e4 {[%emt 0:00:04]} e5 {[%emt 0:00:00]} 2. Nf3 {[%emt 0:00:10]} Nc6 {[%emt 0:00:00]} 3. Nc3 {[%emt 0:00:34]} Nf6 {[%emt 0:00:00]} 4. a3 {[%emt 0:02:23]} d5 {[%emt 0:00:04]} 5. exd5 {[%emt 0:00:06]} Nxd5 {[%emt 0:00:10]} 6. Bb5 {[%emt 0:00:36]} Nxc3 {[%emt 0:00:06]} 7. bxc3 {[%emt 0:00:25]} Bd7 {[%emt 0:01:16]} 8. d4 {[%emt 0:01:59]} e4 {[%emt 0:01:21]} 9. Qe2 {[%emt 0:01:23]} Qe7 {[%emt 0:02:46]} 10. Ng5 {[%emt 0:06:49]} f5 {[%emt 0:03:27]} 11. Bc4 {[%emt 0:00:55]} Nd8 {[%emt 0:04:30]} 12. Bf4 {[%emt 0:04:38]} Ne6 {[%emt 0:03:25]} 13. Nxe6 {[%emt 0:00:10]} Bxe6 {[%emt 0:00:40]} 14. Bxe6 {[%emt 0:00:09]} Qxe6 {[%emt 0:00:08]} 15. Bxc7 {[%emt 0:01:49]} Qc6 {[%emt 0:00:42]} 16. Ba5 {[%emt 0:00:50]} b6 {[%emt 0:00:04]} 17. Bb4 {[%emt 0:00:24]} Bxb4 {[%emt 0:04:43]} 18. O-O {[%emt 0:01:19]} Bxc3 {[%emt 0:00:09]} 19. Rab1 {[%emt 0:01:12]} O-O {[%emt 0:05:55]} 20. Rfd1 {[%emt 0:02:41]} Rad8 {[%emt 0:08:55]} 21. d5 {[%emt 0:00:28]} Rxd5 {[%emt 0:02:26]} 22. Rxd5 {[%emt 0:00:09]} Qxd5 {[%emt 0:03:10]} 23. Qa6 {[%emt 0:01:45]} Rd8 {[%emt 0:00:56]} 24. g3 {[%emt 0:09:01]} e3 {[%emt 0:01:52]} 25. fxe3 {[%emt 0:00:58]} Bd2 {[%emt 0:01:42]} 26. Rb3 {[%emt 0:02:32]} Qc5 {[%emt 0:05:58]} 27. Rd3 {[%emt 0:01:02]} Rxd3 {[%emt 0:00:03]} 28. Qxd3 {[%emt 0:00:10]} Qxe3+ {[%emt 0:00:44]} 29. Qxe3 {[%emt 0:00:08]} Bxe3+ {[%emt 0:00:02]} 30. Kg2 {[%emt 0:00:55]} a5 {[%emt 0:02:21]} 31. c4 {[%emt 0:00:17]} a4 {[%emt 0:00:31]} 32. Kf3 {[%emt 0:00:19]} Bc5 {[%emt 0:00:01]} 33. Ke2 {[%emt 0:00:11]} Bxa3 {[%emt 0:00:12]} 34. Kd3 {[%emt 0:00:51]} Bb2 {[%emt 0:02:36]} 0-1

[Event "DVM U14 2021"]
[Site "Willingen"]
[Date "2022.08.14"]
[Round "4"]
[White "Wegener, Moritz"]
[Black "Negru, Maximilian"]
[Result "0-1"]
[ECO "C00"]
[WhiteElo "1202"]
[BlackElo "1187"]
[Annotator "NA RC"]
[PlyCount "38"]
[EventDate "2022.08.12"]
[EventType "team-tourn"]
[EventRounds "7"]
[EventCountry "GER"]
[SourceTitle "playchess.com"]
[Source "ChessBase"]
[SourceQuality "1"]
[TimeControl "40/5400+30:1800+30"]

1. e4 {[%emt 0:00:19]} e6 {[%emt 0:00:03]} 2. c4 {[%emt 0:00:20]} d5 {[%emt 0:00:36]} 3. cxd5 {[%emt 0:01:26]} exd5 {[%emt 0:00:21]} 4. exd5 {[%emt 0:00:12]} Nf6 {[%emt 0:00:14]} 5. Nc3 {[%emt 0:00:19]} Nxd5 {[%emt 0:00:19]} 6. Be2 {[%emt 0:02:08]} Nc6 {[%emt 0:03:53]} 7. Nf3 {[%emt 0:00:48]} g6 {[%emt 0:02:30]} 8. d4 {[%emt 0:02:11]} Bg7 {[%emt 0:01:17]} 9. O-O {[%emt 0:00:43]} O-O {[%emt 0:00:30]} 10. Re1 {[%emt 0:00:09]} Bf5 {[%emt 0:03:40]} 11. Bc4 {[%emt 0:03:44]} Ndb4 {[%emt 0:05:48]} 12. d5 {[%emt 0:04:25]} Na5 {[%emt 0:03:54]} 13. Ne4 {[%emt 0:12:00]} Nxc4 {[%emt 0:02:25]} 14. Qb3 {[%emt 0:00:19]} Qxd5 {[%emt 0:00:30]} 15. Qxb4 {[%emt 0:03:29]} Bxe4 {[%emt 0:01:19]} 16. Bf4 {[%emt 0:02:20]} Bxf3 {[%emt 0:02:40]} 17. gxf3 {[%emt 0:00:12]} Nxb2 {[%emt 0:00:16]} 18. Qa3 {[%emt 0:01:57]} Nc4 {[%emt 0:01:27]} 19. Qb3 {[%emt 0:01:01]} Bxa1 {[%emt 0:00:29]} 0-1

[Event "DVM U14 2021"]
[Site "Willingen"]
[Date "2022.08.14"]
[Round "4"]
[White "Menne, Lukas"]
[Black "Rudolph, Alexander"]
[Result "0-1"]
[ECO "D00"]
[WhiteElo "1190"]
[BlackElo "1417"]
[Annotator "NA RC"]
[PlyCount "104"]
[EventDate "2022.08.12"]
[EventType "team-tourn"]
[EventRounds "7"]
[EventCountry "GER"]
[SourceTitle "playchess.com"]
[Source "ChessBase"]
[SourceQuality "1"]
[TimeControl "40/5400+30:1800+30"]

1. d4 {[%emt 0:00:02]} d5 {[%emt 0:00:30]} 2. Bf4 {[%emt 0:00:12]} c5 {[%emt 0:01:00]} 3. e3 {[%emt 0:00:07]} Nc6 {[%emt 0:01:30]} 4. Nf3 {[%emt 0:00:20]} a6 {[%emt 0:01:35]} 5. c3 {[%emt 0:00:35]} Nf6 {[%emt 0:00:49]} 6. Be2 {[%emt 0:00:23]} Bf5 {[%emt 0:00:49]} 7. O-O {[%emt 0:00:18]} e6 {[%emt 0:00:29]} 8. Nbd2 {[%emt 0:00:27]} Be7 {[%emt 0:01:28]} 9. Ne5 {[%emt 0:01:06]} h6 {[%emt 0:01:02]} 10. Ndf3 {[%emt 0:00:33]} Nxe5 {[%emt 0:03:29]} 11. Nxe5 {[%emt 0:00:38]} O-O {[%emt 0:00:28]} 12. Bg4 {[%emt 0:01:09]} Nxg4 {[%emt 0:00:52]} 13. Nxg4 {[%emt 0:00:52]} Bg5 {[%emt 0:01:00]} 14. Bxg5 {[%emt 0:01:14]} Qxg5 {[%emt 0:00:49]} 15. Ne5 {[%emt 0:01:08]} c4 {[%emt 0:00:57]} 16. f4 {[%emt 0:03:03]} Qe7 {[%emt 0:00:55]} 17. g4 {[%emt 0:11:04]} Be4 {[%emt 0:03:05]} 18. Qe1 {[%emt 0:01:47]} f6 {[%emt 0:01:04]} 19. Nf3 {[%emt 0:00:29]} f5 {[%emt 0:00:26]} 20. Qg3 {[%emt 0:02:59]} Rf6 {[%emt 0:01:40]} 21. g5 {[%emt 0:01:52]} hxg5 {[%emt 0:01:04]} 22. Nxg5 {[%emt 0:00:48]} Rh6 {[%emt 0:00:47]} 23. h4 {[%emt 0:02:41]} g6 {[%emt 0:00:57]} 24. Rf2 {[%emt 0:00:59]} Kg7 {[%emt 0:02:05]} 25. Rh2 {[%emt 0:02:39]} Rah8 {[%emt 0:03:13]} 26. Rf1 {[%emt 0:03:20]} b5 {[%emt 0:00:46]} 27. a3 {[%emt 0:01:34]} a5 {[%emt 0:04:23]} 28. Qe1 {[%emt 0:09:42]} Rb8 {[%emt 0:00:54]} 29. Nxe4 {[%emt 0:10:39]} dxe4 {[%emt 0:01:09]} 30. Qg3 {[%emt 0:12:29]} Rbh8 {[%emt 0:00:34]} 31. Kg2 {[%emt 0:01:49]} Rxh4 {[%emt 0:01:01]} 32. Rfh1 {[%emt 0:00:50]} Rxh2+ {[%emt 0:00:34]} 33. Rxh2 {[%emt 0:00:16]} Rxh2+ {[%emt 0:00:01]} 34. Qxh2 {[%emt 0:00:03]} b4 {[%emt 0:00:31]} 35. axb4 {[%emt 0:01:12]} axb4 {[%emt 0:00:16]} 36. cxb4 {[%emt 0:00:41]} Qxb4 {[%emt 0:00:04]} 37. Kh3 {[%emt 0:01:14]} c3 {[%emt 0:02:20]} 38. bxc3 {[%emt 0:00:19]} Qxc3 {[%emt 0:00:07]} 39. Qf2 {[%emt 0:02:29]} Qa3 {[%emt 0:01:06]} 40. Qg1 {[%emt 0:01:48]} Qe7 {[%emt 0:02:05]} 41. Qa1 {[%emt 0:36:23]} Kh6 {[%emt 0:30:34]} 42. Qa6 {[%emt 0:02:39]} Kh5 {[%emt 0:01:13]} 43. Qe2+ {[%emt 0:00:26]} Kh6 {[%emt 0:00:15]} 44. Qa6 {[%emt 0:00:12]} g5 {[%emt 0:01:01]} 45. fxg5+ {[%emt 0:00:36]} Kxg5 {[%emt 0:00:23]} 46. Qc8 {[%emt 0:02:06]} Qh7+ {[%emt 0:05:19]} 47. Kg2 {[%emt 0:01:32]} Kg4 {[%emt 0:00:14]} 48. Qb8 {[%emt 0:02:33]} Qh3+ {[%emt 0:00:19]} 49. Kg1 {[%emt 0:02:29]} Qxe3+ {[%emt 0:00:49]} 50. Kg2 {[%emt 0:02:39]} Qf3+ {[%emt 0:00:07]} 51. Kg1 {[%emt 0:00:15]} Qg3+ {[%emt 0:00:02]} 52. Qxg3+ {[%emt 0:01:17]} Kxg3 {[%emt 0:00:10]} 0-1

[Event "DVM U14 2021"]
[Site "Willingen"]
[Date "2022.08.15"]
[Round "5"]
[White "Jones, Richard S."]
[Black "Gloria, Fabian"]
[Result "1-0"]
[ECO "C50"]
[WhiteElo "2394"]
[BlackElo "1420"]
[Annotator "TA"]
[PlyCount "111"]
[EventDate "2022.08.12"]
[EventType "team-tourn"]
[EventRounds "7"]
[EventCountry "GER"]
[SourceTitle "playchess.com"]
[Source "ChessBase"]
[SourceQuality "1"]
[TimeControl "40/5400+30:1800+30"]

{[%evp 10,111,25,-13,8,0,4,0,0,0,0,0,27,20,20,26,13,0,0,9,40,8,16,20,18,-62,-75,-111,-110,-112,-110,-111,-91,-152,-131,-230,-175,-164,-196,-345,-341,-337,-337,-612,-610,-641,-636,-653,-639,-617,-635,-688,-685,-683,-613,-580,-560,-707,-713,-864,-865,-1073,-1043,-1336,-1292,-1004,-507,-448,-188,-188,-188,-164,-129,-129,-129,-138,-119,-170,-170,-196,-170,-194,-170,-170,636,558,677,543,4831,4675,6631,6402,29980,29981,29991,29992,29992,29993,29993,29993,29993,29994,29995,29996]} 1. e4 {[%emt 0:00:01]} e5 {[%emt 0:00:04]} 2. Nf3 {[%emt 0:00:04]} Nc6 {[%emt 0:00:04]} 3. Bc4 {[%emt 0:00:04]} Bc5 {[%emt 0:00:12]} 4. d3 {[%emt 0:00:12]} d6 {[%emt 0:00:20]} 5. h3 {[%emt 0:00:35]} h6 {[%emt 0:01:25]} 6. Nc3 {[%emt 0:00:25]} Nge7 {[%emt 0:02:03] C50: Hungarian Defence and Giuoco Pianissimo.} 7. a3 {[%emt 0:02:12]} a5 {[%emt 0:01:28] [#]} 8. Ba2 $146 {[%emt 0:02:39]} ({Predecessor:} 8. O-O O-O 9. Nh2 Kh7 10. Kh1 f5 11. f4 Nd4 12. Ne2 b5 13. Ba2 Bb7 14. Nxd4 exd4 {½-½ (46) Martins,A-Ferreira,K (2094) Sao Paulo 2011}) 8... Bd7 {[%emt 0:01:35] The position is equal.} 9. O-O {[%emt 0:05:14]} O-O {[%emt 0:00:21]} 10. Be3 {[%emt 0:00:30][%cal Of3e5]} Nd4 {[%emt 0:02:04]} 11. Bxd4 {[%emt 0:10:46]} exd4 {[%emt 0:02:53]} 12. Ne2 {[%emt 0:01:24]} Nc6 {[%emt 0:01:14]} 13. Bd5 {[%emt 0:04:55]} Qf6 {[%emt 0:05:45][%cal Od7h3]} 14. Ng3 {[%emt 0:06:40]} Qg6 {[%emt 0:05:25]} 15. Kh2 {[%emt 0:03:57]} (15. Nh4 $5 {[%cal Rh4g6]} Qf6 16. Nhf5 $11) 15... Rab8 {[%emt 0:03:18]} 16. Nh4 {[%emt 0:05:04]} Qf6 {[%emt 0:04:17]} 17. Bxc6 {[%emt 0:04:11]} ({White should try} 17. Nhf5 $11 Bxf5 18. Nxf5) 17... bxc6 $15 {[%emt 0:01:42]} 18. Nhf5 {[%emt 0:03:24]} Bxf5 {[%emt 0:08:19]} ({Don't take} 18... Rxb2 19. Nh5 Qd8 20. Nhxg7 (20. Qc1 Bxf5 21. Qxb2 Bd7 $14) 20... Bxf5 21. Nxf5 $16) 19. Nxf5 {[%emt 0:01:54]} Rxb2 {[%emt 0:06:11]} 20. Qd2 {[%emt 0:06:08]} Ra8 {[%emt 0:05:56]} 21. Rfc1 {[%emt 0:05:11]} (21. g4 $142) 21... Kh7 {[%emt 0:05:44]} 22. Qd1 {[%emt 0:06:04]} (22. Re1 $17) 22... g6 {[%emt 0:06:41]} 23. Ng3 {[%emt 0:06:40]} Qxf2 {[%emt 0:03:29]} 24. Qf3 {[%emt 0:04:51]} (24. Qg4 $142 Rf8 25. e5 dxe5 26. Qd7) 24... Qxf3 $19 {[%emt 0:00:27]} 25. gxf3 {[%emt 0:00:07]} Rab8 {[%emt 0:03:01] [#] aiming for ...R8b3.} 26. Nf1 $2 {[%emt 0:01:50]} (26. Kg1) 26... R8b3 {[%emt 0:05:16]} 27. Nd2 {[%emt 0:03:12]} Rc3 {[%emt 0:04:46]} 28. Nc4 {[%emt 0:01:32]} Rbxc2+ {[%emt 0:02:21]} 29. Rxc2 {[%emt 0:00:30]} Rxc2+ {[%emt 0:01:57][%mdl 4096] Endgame KRB-KRN} 30. Kg3 {[%emt 0:00:10]} a4 {[%emt 0:02:42]} 31. Na5 {[%emt 0:07:06]} Bb6 {[%emt 0:02:26]} 32. Nc4 {[%emt 0:00:15]} Rc3 {[%emt 0:00:21]} 33. Rd1 {[%emt 0:01:40]} Bc5 {[%emt 0:02:38]} 34. Kf4 {[%emt 0:02:40]} f6 {[%emt 0:01:23] [#] Strongly threatening ...d5.} 35. Rb1 {[%emt 0:02:31]} Rb3 {[%emt 0:01:32]} 36. Rxb3 {[%emt 0:01:51]} axb3 {[%emt 0:00:05] KB-KN} 37. Nd2 {[%emt 0:00:06]} Bxa3 {[%emt 0:00:57] ( -> ...Bc1)} 38. Nxb3 {[%emt 0:00:04]} Kg7 {[%emt 0:00:16]} (38... c5 $142 39. Na5 Kg7) 39. Nxd4 {[%emt 0:00:12]} Bc1+ {[%emt 0:01:38]} 40. Kg3 {[%emt 0:00:13]} Kf7 {[%emt 0:01:21]} 41. Nxc6 {[%emt 0:31:07]} Ke6 {[%emt 0:30:47]} 42. Nd4+ {[%emt 0:00:00]} Kd7 {[%emt 0:00:00]} 43. Kf2 {[%emt 0:00:00]} (43. f4 $17 {was called for.}) 43... c5 {[%emt 0:00:00]} 44. Nb3 {[%emt 0:00:00]} Bb2 {[%emt 0:00:00]} 45. Ke2 {[%emt 0:00:00]} Ke6 {[%emt 0:00:00] White must now prevent ...Ke5.} 46. Na5 {[%emt 0:00:00]} Ke5 $4 {[%emt 0:00:00][%mdl 8192]} (46... d5 $19 47. Nb7 Bd4 48. Nd8+ Ke7 49. Nc6+ Kd6 50. exd5 g5) 47. Nc4+ $18 {[%emt 0:00:00]} Kf4 {[%emt 0:00:00]} 48. Nxb2 {[%emt 0:00:00] Threatens to win with Nc4. KN-KP} Kg3 {[%emt 0:00:00]} 49. Nc4 {[%emt 0:00:00]} Kxh3 {[%emt 0:00:00]} 50. Kf2 {[%emt 0:00:00]} f5 {[%emt 0:00:00]} 51. Nxd6 {[%emt 0:00:00] White mates.} f4 {[%emt 0:00:00]} 52. e5 {[%emt 0:00:00]} g5 {[%emt 0:00:00]} 53. e6 {[%emt 0:00:00]} g4 {[%emt 0:00:00]} 54. fxg4 {[%emt 0:00:00]} Kxg4 {[%emt 0:00:00]} 55. e7 {[%emt 0:00:00]} h5 {[%emt 0:00:00]} 56. e8=Q {[%emt 0:00:00] Quite a comeback for White.  Weighted Error Value: White=0.44/Black=0.12 (very precise)} 1-0

[Event "DVM U14 2021"]
[Site "Willingen"]
[Date "2022.08.15"]
[Round "5"]
[White "Sidletskyi, Ivan"]
[Black "Aravindan, Midhulan"]
[Result "1-0"]
[ECO "A36"]
[WhiteElo "2075"]
[BlackElo "1642"]
[Annotator "TA"]
[PlyCount "65"]
[EventDate "2022.08.12"]
[EventType "team-tourn"]
[EventRounds "7"]
[EventCountry "GER"]
[SourceTitle "playchess.com"]
[Source "ChessBase"]
[SourceQuality "1"]
[TimeControl "40/5400+30:1800+30"]

{[%evp 13,65,0,19,0,0,0,8,0,22,21,30,13,104,32,42,29,167,170,156,77,93,17,92,98,103,89,69,72,61,58,130,124,315,322,312,270,393,393,452,361,589,596,665,660,777,772,809,780,867,825,1364,1360,1474,1456]} 1. c4 {[%emt 0:00:10]} c5 {[%emt 0:03:17]} 2. Nc3 {[%emt 0:00:15]} Nc6 {[%emt 0:02:37]} 3. g3 {[%emt 0:00:27]} g6 {[%emt 0:01:46]} 4. Bg2 {[%emt 0:00:26]} Bg7 {[%emt 0:04:31]} 5. d3 {[%emt 0:02:38]} Nf6 {[%emt 0:03:00]} 6. e4 {[%emt 0:02:18]} d6 {[%emt 0:00:40]} 7. Nge2 {[%emt 0:06:33]} Bd7 {[%emt 0:04:02]} 8. h3 {[%emt 0:10:21] A36: Symmetrical English vs ...g6: 4 Bg2 Bg7.} a6 {[%emt 0:01:08]} 9. Be3 {[%emt 0:08:11]} Rb8 {[%emt 0:01:04]} 10. a4 {[%emt 0:03:40] The position is equal.} Qb6 {[%emt 0:04:32]} 11. O-O {[%emt 0:03:59]} O-O {[%emt 0:01:32]} (11... Qxb2 $2 12. Rb1 Qxb1 13. Qxb1 $18) 12. f4 {[%emt 0:04:27] [#]} Nd4 $146 {[%emt 0:11:21]} (12... Qxb2 $2 13. Rb1 Ng4 14. hxg4 Bxc3 15. Rxb2 $18) (12... e6 $11 {keeps the balance.}) ({Predecessor:} 12... e6 13. a5 Qc7 14. e5 dxe5 15. Bxc5 exf4 16. Nxf4 Nxa5 17. Bxf8 Rxf8 18. Qe1 Nb3 19. Rd1 {0-1 (35) McMillan,N (2020)-Fasser,W (1989) ICCF email 2012}) 13. Ra2 {[%emt 0:04:54]} (13. e5 $16 Nxe2+ 14. Qxe2) 13... e5 {[%emt 0:02:14]} 14. g4 {[%emt 0:04:30][%cal Bg3g4,Bg4g5][%mdl 32]} (14. a5 $5 {[%cal Ra5b6]} Qd8 15. fxe5 dxe5 16. Bd2 $11) 14... h5 {[%emt 0:00:41]} (14... exf4 $11 15. a5 Nxe2+ 16. Nxe2 Qc7 17. Nxf4 Bc6) 15. g5 $18 {[%emt 0:00:45]} Nh7 {[%emt 0:02:00]} 16. Nd5 {[%emt 0:01:29]} (16. f5 $142 $1) 16... Qd8 $16 {[%emt 0:11:40] [#]} 17. h4 {[%emt 0:04:49]} (17. f5 $1 $16 {[%cal Rf5f6] Strongly threatening f6.} Nxg5 18. Bc1) 17... Bg4 {[%emt 0:00:45]} (17... Nxe2+ $1 $11 18. Qxe2 exf4 19. Bxf4 (19. Rxf4 Be6 $11) 19... Be6) 18. Bxd4 {[%emt 0:01:20]} exd4 {[%emt 0:04:18]} 19. a5 {[%emt 0:02:51]} f6 {[%emt 0:05:24][%cal Rf6g5]} 20. Qd2 $36 {[%emt 0:02:42][%mdl 2048] White has strong initiative. White is more active.} fxg5 {[%emt 0:00:09]} 21. hxg5 {[%emt 0:01:35]} Rf7 {[%emt 0:02:59]} (21... Bxe2 $14 22. Qxe2 Nxg5) 22. b4 {[%emt 0:05:15]} Nf8 $2 {[%emt 0:00:53] [#]} (22... cxb4 $16 23. Qxb4 Nf8) 23. bxc5 $1 $18 {[%emt 0:01:00]} dxc5 {[%emt 0:01:11]} 24. e5 {[%emt 0:02:21]} Ne6 {[%emt 0:00:31]} (24... h4 $142 25. Nf6+ Bxf6 26. gxf6 Rh7) 25. Ng3 {[%emt 0:02:04]} Nc7 {[%emt 0:00:56]} 26. Ne4 {[%emt 0:03:21] Pair of Knights!} Be6 $2 {[%emt 0:06:04]} (26... Nxd5 27. cxd5 b6 28. axb6 Qxb6) 27. Ndf6+ {[%emt 0:00:45] White is clearly winning.} Bxf6 {[%emt 0:00:13]} 28. gxf6 {[%emt 0:01:23]} Qf8 {[%emt 0:00:37]} 29. Rb2 {[%emt 0:03:26]} h4 {[%emt 0:01:45]} 30. Ng5 {[%emt 0:00:51][%csl LRb7,LRf7]} Qh6 {[%emt 0:01:10]} 31. Nxf7 {[%emt 0:00:24]} Kxf7 {[%emt 0:00:08]} 32. f5 {[%emt 0:01:07][%cal Bf4f5,Bf5e6][%mdl 32]} Qxd2 {[%emt 0:00:08]} 33. fxe6+ {[%emt 0:01:33] Weighted Error Value: White=0.20 (precise) /Black=0.65} 1-0

[Event "DVM U14 2021"]
[Site "Willingen"]
[Date "2022.08.15"]
[Round "5"]
[White "Krüger, Arthur"]
[Black "Nitsche, Nikolai"]
[Result "1-0"]
[ECO "D00"]
[WhiteElo "1996"]
[BlackElo "1764"]
[Annotator "TA"]
[PlyCount "43"]
[EventDate "2022.08.12"]
[EventType "team-tourn"]
[EventRounds "7"]
[EventCountry "GER"]
[SourceTitle "playchess.com"]
[Source "ChessBase"]
[SourceQuality "1"]
[TimeControl "40/5400+30:1800+30"]

{[%evp 9,43,10,10,5,9,0,0,-2,0,2,36,-10,46,35,157,151,163,182,304,189,263,175,208,200,261,211,213,112,140,102,114,101,135,96,29996,29997]} 1. d4 {[%emt 0:00:04]} d5 {[%emt 0:00:48]} 2. Bf4 {[%emt 0:00:07]} Nf6 {[%emt 0:00:15]} 3. e3 {[%emt 0:00:16]} g6 {[%emt 0:00:07]} 4. c3 {[%emt 0:01:09]} Bg7 {[%emt 0:00:04]} 5. Nf3 {[%emt 0:00:29]} O-O {[%emt 0:00:27]} 6. Be2 {[%emt 0:00:38] D00: 1 d4 d5: Unusual lines.} Nh5 {[%emt 0:02:49]} 7. Be5 {[%emt 0:01:15]} f6 {[%emt 0:00:30]} 8. Bg3 {[%emt 0:00:34] The position is equal.} Nxg3 {[%emt 0:00:13]} 9. hxg3 {[%emt 0:00:03]} e5 {[%emt 0:00:32] [#]} 10. Qb3 $146 {[%emt 0:04:44]} (10. c4 $14) ({Predecessor:} 10. dxe5 fxe5 11. Nbd2 c6 12. Qb3 a5 13. c4 e4 14. Nd4 a4 15. Qa3 Rf7 16. Rc1 {1-0 (24) Grummitt,W (1972)-Tanner,A (1646) ICCF email 2019}) 10... c6 {[%emt 0:07:04]} (10... Re8 $11) 11. c4 $1 $14 {[%emt 0:03:07]} dxc4 {[%emt 0:13:24]} (11... Qb6 $14) 12. Bxc4+ $16 {[%emt 0:00:28]} Kh8 {[%emt 0:00:37]} 13. Nc3 {[%emt 0:14:42]} b5 {[%emt 0:11:58]} (13... Qe7 $142 14. Nh4 Bh6 15. Nxg6+ hxg6) 14. Nxb5 {[%emt 0:12:04]} Bg4 {[%emt 0:10:19]} (14... cxb5 $142 15. Bd5 Nc6) 15. Nc3 {[%emt 0:05:51] Hoping for Nh4.} Bxf3 {[%emt 0:11:37]} 16. gxf3 $40 {[%emt 0:00:17][%mdl 128] [#] aiming for dxe5. White is out for blood.} exd4 {[%emt 0:00:05]} 17. O-O-O {[%emt 0:02:57]} f5 {[%emt 0:04:36]} 18. exd4 {[%emt 0:02:35]} (18. Ne2 $18) 18... Nd7 {[%emt 0:02:19]} 19. Qc2 {[%emt 0:16:44] 0x0.001ebace4175dp-1022s more active pieces.} Nb6 {[%emt 0:02:43]} 20. Bb3 {[%emt 0:05:14]} Rc8 {[%emt 0:02:44]} 21. Qd2 {[%emt 0:01:08][%cal Oh1h7] Threatening mate with Rxh7+!} Qf6 $2 {[%emt 0:06:48][%mdl 8192] [#]} (21... Nd5 $16) 22. Rxh7+ $3 {[%emt 0:00:40][%mdl 512] Weighted Error Value: White=0.32/Black=0.80} 1-0